bitfinex/quotes_SOLUSD_20250617
["timestamp","ask_amount","ask_price","bid_price","bid_amount"]
[1750124507548,12.44148641,151.59,151.57,15.13285587]
[1750124509375,12.44148641,151.59,151.57,21.73031934]
[1750124509877,17.3449951,151.59,151.57,21.73031934]
[1750124510080,12.44148641,151.59,151.57,21.73031934]
[1750124510253,17.3449951,151.59,151.57,21.73031934]
[1750124510453,12.44148641,151.59,151.57,21.73031934]
[1750124511084,12.44148641,151.59,151.58,15.63003227]
[1750124511395,12.44148641,151.59,151.58,6.5971764]
[1750124511766,12.44148641,151.59,151.58,15.63003227]
[1750124511974,26.0,151.63,151.58,15.63003227]
[1750124512188,26.0,151.63,151.61,9.03285587]
[1750124512552,9.03285587,151.65,151.61,9.03285587]
[1750124512775,36.49285587,151.65,151.61,9.03285587]
[1750124512980,9.03285587,151.65,151.61,9.03285587]
[1750124513256,36.49285587,151.65,151.61,9.03285587]
[1750124513461,9.03285587,151.65,151.61,9.03285587]
[1750124513776,27.46,151.64,151.61,9.03285587]
[1750124513979,27.46,151.64,151.6,6.59590273]
[1750124514683,18.64964886,151.65,151.6,6.59590273]
[1750124514889,4.91621369,151.65,151.64,9.03285587]
[1750124515104,4.91637495,151.67,151.64,15.11285587]
[1750124515390,35.80496296,151.69,151.65,6.59413122]
[1750124515574,4.91718638,151.68,151.65,6.59413122]
[1750124515773,36.49285587,151.69,151.65,15.62698709]
[1750124515973,4.91882519,151.68,151.65,15.62698709]
[1750124516156,27.68250473,151.71,151.66,9.03285587]
[1750124516362,32.38061665,151.7,151.66,9.03285587]
[1750124517175,4.92061665,151.7,151.66,15.62644641]
[1750124517867,9.03285587,151.71,151.67,9.03285587]
[1750124518071,36.49285587,151.71,151.67,9.03285587]
[1750124518375,36.49285587,151.71,151.67,15.62603931]
[1750124518564,9.03285587,151.71,151.67,15.62603931]
[1750124519088,12.6955435,151.72,151.7,9.03285587]
[1750124519261,55.14250473,151.75,151.71,9.03285587]
[1750124519462,35.03285587,151.75,151.71,15.11285587]
[1750124519782,39.90048159,151.76,151.71,15.11285587]
[1750124519991,9.03285587,151.75,151.71,15.11285587]
[1750124520161,36.47285587,151.75,151.71,15.11285587]
[1750124520478,9.03285587,151.75,151.71,15.11285587]
[1750124520670,36.47285587,151.75,151.71,15.11285587]
[1750124521685,36.47285587,151.75,151.71,21.70437322]
[1750124521983,27.44,151.75,151.71,21.70432529]
[1750124522181,3.42762572,151.76,151.71,21.70432529]
[1750124522383,32.19889598,151.91,151.71,21.70432529]
[1750124522384,9.03285587,151.8,151.75,9.03285587]
[1750124522573,27.44,151.79,151.75,9.03285587]
[1750124522775,18.64964886,151.75,151.7,6.08]
[1750124523081,9.03285587,151.72,151.7,6.08]
[1750124523491,18.64964886,151.7,151.65,29.60017745]
[1750124523787,9.03285587,151.67,151.65,29.60017745]
[1750124523989,36.47285587,151.69,151.65,36.19428088]
[1750124524172,9.03285587,151.68,151.65,36.19428088]
[1750124524365,9.03285587,151.68,151.65,29.60017745]
[1750124524562,9.03285587,151.67,151.65,29.60017745]
[1750124524982,9.03285587,151.66,151.65,29.60017745]
[1750124526692,15.62655229,151.66,151.65,29.60017745]
[1750124526872,62.00052429,151.66,151.65,29.60017745]
[1750124527066,0.28432314,151.65,151.6,6.08]
[1750124527266,9.03285587,151.62,151.6,6.08]
[1750124529598,27.44,151.63,151.6,6.08]
[1750124530092,27.44,151.63,151.6,12.67626098]
[1750124530293,27.44,151.63,151.6,21.70911685]
[1750124530489,27.44,151.65,151.6,6.08]
[1750124530679,9.03285587,151.63,151.6,6.08]
[1750124530880,9.03285587,151.64,151.6,6.08]
[1750124532192,36.47285587,151.65,151.6,15.11285587]
[1750124532582,36.47285587,151.65,151.6,21.70876813]
[1750124534277,44.64964886,151.66,151.6,21.70876813]
[1750124534278,165.57739356,151.73,151.62,9.03285587]
[1750124534480,9.03285587,151.68,151.64,9.03285587]
[1750124534790,27.44,151.67,151.64,9.03285587]
[1750124535086,36.47285587,151.68,151.63,15.62751439]
[1750124535793,9.03285587,151.68,151.63,15.62751439]
[1750124536383,18.64964886,151.67,151.61,6.59587098]
[1750124536586,9.03285587,151.66,151.61,15.62872685]
[1750124537192,46.08964886,151.67,151.61,6.59587098]
[1750124537193,36.47285587,151.67,151.61,6.59587098]
[1750124537403,27.44,151.67,151.63,9.03285587]
[1750124537612,26.0,151.69,151.65,9.03285587]
[1750124537788,53.44,151.69,151.65,9.03285587]
[1750124537986,0.28432314,151.71,151.65,9.03285587]
[1750124538184,27.44,151.69,151.65,9.03285587]
[1750124538405,53.44,151.69,151.61,29.23444844]
[1750124538727,9.03285587,151.7,151.66,9.03285587]
[1750124538885,27.44,151.7,151.67,15.09285587]
[1750124539082,27.5869,151.72,151.67,21.68586862]
[1750124539301,27.44,151.72,151.69,9.03285587]
[1750124539489,9.03285587,151.7,151.62,1.5534]
[1750124539690,9.03285587,151.66,151.62,6.06]
[1750124539890,9.03285587,151.66,151.62,15.09285587]
[1750124540111,46.08964886,151.69,151.65,9.03285587]
[1750124540416,27.44,151.69,151.65,9.03285587]
[1750124540705,36.47285587,151.69,151.65,9.03285587]
[1750124540904,9.03285587,151.69,151.65,9.03285587]
[1750124541205,9.03285587,151.69,151.65,15.62671391]
[1750124542585,9.03285587,151.69,151.65,6.59385804]
[1750124543111,9.03285587,151.69,151.65,15.62671391]
[1750124544113,9.03285587,151.68,151.64,15.62737543]
[1750124544413,27.68250473,151.66,151.62,6.06]
[1750124544590,55.10250473,151.66,151.62,6.06]
[1750124544793,52.09904838,151.66,151.62,6.06]
[1750124545297,33.44939952,151.66,151.62,12.65533483]
[1750124545801,27.42,151.66,151.62,18.68473435]
[1750124546200,33.44939952,151.66,151.62,12.65533483]
[1750124546811,36.46418275,151.66,151.62,12.65533483]
[1750124550006,149.1,151.73,151.65,25.7506655]
[1750124550210,19.33425238,151.77,151.7,9.04418275]
[1750124550211,9.04418275,151.75,151.7,9.04418275]
[1750124550394,9.04418275,151.75,151.71,9.04418275]
[1750124550724,38.47064156,151.76,151.71,9.04418275]
[1750124551018,27.69383161,151.75,151.71,6.5915233]
[1750124551399,27.69383161,151.75,151.7,21.69600141]
[1750124551918,9.04418275,151.74,151.7,12.65181866]
[1750124552521,27.69383161,151.75,151.7,21.69600141]
[1750124553321,32.60065935,151.75,151.7,21.69600141]
[1750124554327,39.19051651,151.75,151.7,21.69600141]
[1750124554645,9.04418275,151.73,151.69,12.65231184]
[1750124554801,35.04418275,151.72,151.69,6.06]
[1750124555200,27.69383161,151.71,151.69,6.06]
[1750124559203,18.64964886,151.69,151.61,24.53646611]
[1750124559403,26.0,151.72,151.68,9.04418275]
[1750124559604,26.0,151.72,151.65,9.04418275]
[1750124559605,26.0,151.72,151.69,9.04418275]
[1750124560309,26.0,151.72,151.7,9.04418275]
[1750124560512,18.64964886,151.74,151.7,9.04418275]
[1750124561531,27.69383161,151.74,151.7,9.04418275]
[1750124562199,9.04418275,151.73,151.69,15.10418275]
[1750124562404,9.04418275,151.73,151.69,6.06]
[1750124562717,9.04418275,151.72,151.69,6.06]
[1750124562920,9.04418275,151.7,151.67,6.06]
[1750124563232,9.04418275,151.69,151.67,6.06]
[1750124563431,9.04418275,151.7,151.67,6.06]
[1750124564934,30.15232127,151.71,151.67,6.06]
[1750124565143,9.04418275,151.68,151.67,6.06]
[1750124565821,27.69383161,151.68,151.67,6.06]
[1750124566439,18.64964886,151.68,151.67,6.06]
[1750124566619,27.69383161,151.68,151.67,6.06]
[1750124566824,24.67862395,151.68,151.67,6.06]
[1750124567031,26.0,151.7,151.67,6.06]
[1750124567220,26.0,151.7,151.67,18.68211832]
[1750124568030,24.67862395,151.72,151.67,18.68211832]
[1750124568349,52.09862395,151.72,151.67,18.68211832]
[1750124569044,9.03756602,151.71,151.67,21.69070925]
[1750124569219,4.91367842,151.72,151.68,9.03756602]
[1750124569418,62.45756602,151.73,151.68,9.03756602]
[1750124569619,26.0,151.73,151.69,9.03756602]
[1750124570323,35.03756602,151.73,151.68,9.03756602]
[1750124570524,35.03756602,151.73,151.69,6.59239237]
[1750124573320,9.03756602,151.72,151.68,6.59275171]
[1750124574624,30.91520718,151.73,151.68,15.63031773]
[1750124574843,35.03756602,151.73,151.68,15.63031773]
[1750124575945,35.03756602,151.73,151.69,15.62955976]
[1750124576654,26.0,151.73,151.7,9.03756602]
[1750124576856,26.0,151.73,151.69,15.62955976]
[1750124579445,30.91561441,151.73,151.69,15.62955976]
[1750124579640,13.95412995,151.72,151.69,6.59199374]
[1750124580059,35.03756602,151.73,151.69,6.59199374]
[1750124580241,26.0,151.73,151.69,15.62955976]
[1750124580443,27.4,151.74,151.7,9.03756602]
[1750124580636,36.43756602,151.74,151.69,15.62955976]
[1750124580958,41.3557807,151.74,151.69,15.62955976]
[1750124581758,36.43756602,151.74,151.69,15.62955976]
[1750124582762,36.43756602,151.74,151.7,9.03756602]
[1750124583144,9.03756602,151.74,151.7,9.03756602]
[1750124583649,9.03756602,151.74,151.69,15.62955976]
[1750124583958,55.08721488,151.75,151.7,9.03756602]
[1750124584539,27.68721488,151.75,151.7,9.03756602]
[1750124584737,60.00856781,151.75,151.71,6.5915233]
[1750124584938,55.08721488,151.75,151.71,6.5915233]
[1750124586265,9.03756602,151.74,151.71,6.5915233]
[1750124587347,9.03756602,151.74,151.7,6.59195781]
[1750124588070,9.03756602,151.74,151.69,9.03756602]
[1750124588071,9.03756602,151.73,151.69,6.59224669]
[1750124588568,11.44464161,151.8,151.72,35.03756602]
[1750124588750,4.91952143,151.81,151.78,9.03756602]
[1750124588954,6.01604522,151.8,151.78,6.06]
[1750124589161,4.91952143,151.79,151.78,6.06]
[1750124589359,38.33556665,151.8,151.78,6.06]
[1750124589676,33.41604522,151.8,151.78,6.06]
[1750124590045,44.92340111,151.8,151.78,6.06]
[1750124590354,40.00387968,151.8,151.78,6.06]
[1750124590560,33.41604522,151.8,151.78,6.06]
[1750124590753,38.33206723,151.8,151.78,6.06]
[1750124590954,40.00368047,151.8,151.78,6.06]
[1750124591544,18.64964886,151.75,151.73,6.06]
[1750124591754,6.01604522,151.74,151.73,6.06]
[1750124592207,24.66569408,151.74,151.73,6.06]
[1750124593256,6.01604522,151.74,151.73,6.06]
[1750124593665,33.41604522,151.75,151.73,6.06]
[1750124594276,6.01604522,151.74,151.73,6.06]
[1750124594851,27.4,151.75,151.73,6.06]
[1750124595051,6.01604522,151.74,151.73,6.06]
[1750124595853,27.4,151.75,151.73,6.06]
[1750124596053,6.01604522,151.74,151.73,6.06]
[1750124596479,33.41604522,151.75,151.73,6.06]
[1750124596979,6.01604522,151.74,151.73,6.06]
[1750124599675,59.41604522,151.76,151.73,6.06]
[1750124601180,6.01604522,151.75,151.73,6.06]
[1750124601367,6.01604522,151.76,151.73,6.06]
[1750124602265,6.01604522,151.75,151.73,6.06]
[1750124602487,6.01604522,151.74,151.73,6.06]
[1750124602687,27.38,151.75,151.73,6.06]
[1750124602887,6.01604522,151.74,151.73,6.06]
[1750124603598,33.39604522,151.75,151.73,6.06]
[1750124609175,27.38,151.75,151.73,6.06]
[1750124609375,33.39604522,151.77,151.73,12.65065222]
[1750124609586,38.31469818,151.77,151.73,12.65065222]
[1750124609891,6.01604522,151.8,151.75,6.01604522]
[1750124610075,38.31583812,151.81,151.76,6.01604522]
[1750124610390,4.9197929,151.8,151.76,6.01604522]
[1750124610582,4.9197929,151.8,151.76,12.60529914]
[1750124614290,33.39604522,151.81,151.76,12.60529914]
[1750124614596,4.91879764,151.8,151.76,12.60529914]
[1750124614896,33.39604522,151.81,151.76,12.60529914]
[1750124615389,6.01604522,151.77,151.73,6.04]
[1750124615595,6.01604522,151.75,151.73,6.04]
[1750124616289,6.01604522,151.74,151.73,6.04]
[1750124616499,6.01604522,151.75,151.73,6.04]
[1750124618092,59.39604522,151.77,151.73,12.63064327]
[1750124618478,53.38,151.77,151.73,18.64668849]
[1750124619187,26.0,151.77,151.73,18.64668849]
[1750124619707,26.0,151.77,151.74,6.01604522]
[1750124619994,27.38,151.78,151.74,6.01604522]
[1750124620183,32.29307726,151.78,151.74,6.01604522]
[1750124620792,38.30912248,151.78,151.73,18.64668849]
[1750124622803,38.31355269,151.78,151.73,18.64668849]
[1750124624003,33.39604522,151.78,151.73,18.64668849]
[1750124624297,38.31361739,151.78,151.73,18.64668849]
[1750124624485,33.39604522,151.78,151.73,18.64668849]
[1750124624688,38.31361739,151.78,151.73,18.64668849]
[1750124624887,33.39604522,151.78,151.73,18.64668849]
[1750124625087,38.31361739,151.78,151.73,18.64668849]
[1750124625388,33.39604522,151.78,151.73,18.64668849]
[1750124625598,38.31361739,151.78,151.73,18.64668849]
[1750124625782,33.39604522,151.78,151.73,18.64668849]
[1750124625982,38.31361739,151.78,151.73,18.64668849]
[1750124626301,38.31361739,151.78,151.73,6.04]
[1750124626302,6.01604522,151.77,151.73,6.04]
[1750124626482,10.93276467,151.77,151.73,6.04]
[1750124626677,6.01604522,151.74,151.73,6.04]
[1750124627587,29.58191967,151.74,151.73,6.04]
[1750124627898,36.45646292,151.74,151.73,6.04]
[1750124629307,36.45646292,151.74,151.69,66.63906711]
[1750124629308,26.0,151.71,151.69,66.63906711]
[1750124629491,24.66569408,151.7,151.69,66.63906711]
[1750124629875,29.5809377,151.7,151.69,66.63906711]
[1750124632282,24.66569408,151.7,151.69,66.63906711]
[1750124632981,18.64964886,151.7,151.69,66.63906711]
[1750124633297,59.37604522,151.71,151.69,66.63906711]
[1750124633604,6.01604522,151.7,151.69,66.63906711]
[1750124634107,24.66569408,151.7,151.69,66.63906711]
[1750124635385,31.25765189,151.7,151.69,66.63906711]
[1750124637192,31.25765189,151.7,151.6,14.79521483]
[1750124637193,44.64964886,151.66,151.6,14.79521483]
[1750124637388,6.01604522,151.63,151.61,6.04]
[1750124637710,6.01604522,151.64,151.61,6.04]
[1750124639608,6.01604522,151.64,151.61,12.63576363]
[1750124639901,26.0,151.67,151.63,6.01604522]
[1750124640104,6.01604522,151.7,151.65,6.01604522]
[1750124640311,33.37604522,151.7,151.66,6.01604522]
[1750124640486,33.37604522,151.7,151.67,6.59326168]
[1750124641005,6.01604522,151.7,151.67,6.59326168]
[1750124641205,36.80072174,151.71,151.67,6.59326168]
[1750124642903,9.44072174,151.71,151.67,6.59326168]
[1750124643106,36.80072174,151.71,151.67,6.59326168]
[1750124644902,36.80072174,151.71,151.67,12.63326168]
[1750124645539,9.44072174,151.71,151.67,18.6493069]
[1750124645728,9.44072174,151.71,151.67,12.63324114]
[1750124645729,6.01604522,151.7,151.67,12.63324114]
[1750124645896,9.44072174,151.71,151.67,12.63324114]
[1750124646238,9.44072174,151.71,151.67,18.64928636]
[1750124646521,9.44072174,151.71,151.67,12.63324114]
[1750124647303,6.01604522,151.68,151.67,6.04]
[1750124647500,24.66569408,151.69,151.67,6.04]
[1750124648637,27.36,151.7,151.67,6.04]
[1750124648798,84.26242849,151.76,151.67,6.04]
[1750124648799,72.10128111,151.76,151.69,6.01604522]
[1750124648999,6.01604522,151.74,151.69,6.01604522]
[1750124649199,33.37604522,151.74,151.69,6.01604522]
[1750124649510,6.01604522,151.74,151.7,12.60773636]
[1750124649711,6.01604522,151.74,151.7,6.59169114]
[1750124650627,33.37604522,151.74,151.7,6.59169114]
[1750124650803,6.01604522,151.73,151.69,6.01604522]
[1750124651426,6.01604522,151.73,151.68,12.60845815]
[1750124651614,6.01604522,151.72,151.67,18.64914463]
[1750124653823,6.01604522,151.71,151.67,18.64914463]
[1750124655025,12.60761154,151.71,151.67,6.04]
[1750124655330,6.01604522,151.68,151.66,6.04]
[1750124655514,6.01604522,151.69,151.66,6.04]
[1750124656909,6.01604522,151.7,151.66,12.63364619]
[1750124657235,6.01604522,151.7,151.66,18.64969141]
[1750124658114,6.01604522,151.7,151.66,6.04]
[1750124658409,6.01604522,151.69,151.66,6.04]
[1750124658604,6.01604522,151.68,151.66,6.04]
[1750124659929,6.01604522,151.67,151.66,6.04]
[1750124660149,24.66569408,151.67,151.66,6.04]
[1750124660806,31.5432789,151.67,151.66,6.04]
[1750124661003,31.5432789,151.67,151.59,52.2]
[1750124661004,31.68544047,151.67,151.59,52.2]
[1750124661212,6.01604522,151.62,151.6,6.02]
[1750124661517,59.37604522,151.64,151.6,12.03604522]
[1750124662534,59.37604522,151.64,151.61,6.59587098]
[1750124663316,25.24291054,151.67,151.61,6.59587098]
[1750124663317,6.01604522,151.65,151.61,6.59587098]
[1750124663837,6.01604522,151.65,151.62,6.02]
[1750124665216,27.36,151.66,151.62,6.02]
[1750124665537,6.01604522,151.66,151.62,18.63140262]
[1750124666719,6.01604522,151.66,151.62,12.6153574]
[1750124667426,6.01604522,151.66,151.62,18.63140262]
[1750124668917,26.0,151.67,151.63,6.01604522]
[1750124669718,32.01604522,151.67,151.63,6.01604522]
[1750124670745,6.01604522,151.66,151.62,18.63140262]
[1750124670956,6.01604522,151.66,151.62,12.6153574]
[1750124671418,6.01604522,151.66,151.63,6.02]
[1750124672832,6.01604522,151.65,151.63,6.02]
[1750124673046,6.01604522,151.64,151.63,6.02]
[1750124675346,31.54458329,151.64,151.63,6.02]
[1750124675541,36.44839933,151.64,151.63,6.02]
[1750124677031,29.56951012,151.64,151.63,6.02]
[1750124677344,6.01604522,151.64,151.63,6.02]
[1750124677917,31.54458329,151.64,151.63,6.02]
[1750124678147,62.58456119,151.64,151.63,6.02]
[1750124678621,62.58456119,151.64,151.57,76.01502037]
[1750124678622,0.28432314,151.63,151.58,6.02]
[1750124678822,6.01604522,151.61,151.58,6.02]
[1750124680338,6.01604522,151.6,151.58,6.02]
[1750124680840,6.01604522,151.6,151.58,12.61710905]
[1750124681449,6.01604522,151.6,151.58,6.02]
[1750124682944,6.01604522,151.59,151.58,6.02]
[1750124684541,6.01604522,151.6,151.58,6.02]
[1750124687048,6.01604522,151.59,151.58,6.02]
[1750124688432,6.01604522,151.6,151.58,6.02]
[1750124690228,18.64964886,151.63,151.58,18.63313101]
[1750124690540,52.00569408,151.63,151.58,18.63313101]
[1750124690742,6.01604522,151.62,151.58,18.63313101]
[1750124692872,33.35604522,151.65,151.6,6.01604522]
[1750124693658,6.01604522,151.65,151.6,6.01604522]
[1750124693865,6.01604522,151.66,151.62,6.01604522]
[1750124694163,33.35604522,151.67,151.62,6.01604522]
[1750124694372,33.35604522,151.68,151.63,6.01604522]
[1750124694533,22.08740002,151.69,151.64,6.01604522]
[1750124694732,3.43775116,151.69,151.68,6.01604522]
[1750124694932,10.89801031,151.74,151.68,6.01604522]
[1750124695165,3.43670901,151.73,151.69,6.01604522]
[1750124696633,6.01604522,151.77,151.72,12.60689155]
[1750124696937,6.01604522,151.77,151.73,12.03604522]
[1750124697338,6.01604522,151.79,151.74,6.01604522]
[1750124697740,6.01604522,151.79,151.73,6.02]
[1750124697741,6.01604522,151.79,151.75,6.01604522]
[1750124698657,35.45145066,151.8,151.75,6.01604522]
[1750124698857,62.79145066,151.8,151.75,12.60541656]
[1750124699232,36.79145066,151.8,151.75,6.58937134]
[1750124699447,36.79145066,151.8,151.75,12.60541656]
[1750124700158,6.01604522,151.79,151.75,12.60541656]
[1750124700369,6.01604522,151.76,151.74,6.0]
[1750124700653,18.933972,151.79,151.74,6.0]
[1750124700654,6.01604522,151.75,151.74,6.0]
[1750124700858,31.53980305,151.75,151.74,6.0]
[1750124701033,18.933972,151.74,151.69,6.0]
[1750124701235,6.01604522,151.7,151.69,6.0]
[1750124701464,33.33604522,151.7,151.69,6.0]
[1750124702440,51.98569408,151.7,151.69,6.0]
[1750124702852,55.01094785,151.7,151.69,6.0]
[1750124703461,61.8872288,151.7,151.69,6.0]
[1750124704367,18.64964886,151.69,151.64,6.0]
[1750124704563,9.04129899,151.66,151.64,6.0]
[1750124705852,36.36129899,151.67,151.64,12.59449888]
[1750124706054,36.36129899,151.67,151.64,6.0]
[1750124706663,9.04129899,151.66,151.64,6.0]
[1750124707572,9.04129899,151.66,151.64,12.59452921]
[1750124707772,36.36129899,151.67,151.64,12.59452921]
[1750124708180,36.36129899,151.67,151.64,6.0]
[1750124708363,9.04129899,151.66,151.64,6.0]
[1750124708843,9.04129899,151.65,151.64,6.0]
[1750124711967,26.0,151.62,151.57,76.01509753]
[1750124712294,9.04129899,151.62,151.58,9.04129899]
[1750124713154,9.04129899,151.62,151.58,15.63824472]
[1750124713749,9.04129899,151.61,151.57,91.0563479]
[1750124714464,9.04129899,151.6,151.57,75.41752961]
[1750124714847,9.04129899,151.61,151.57,82.0150861]
[1750124715047,9.04129899,151.61,151.57,91.05638509]
[1750124715465,9.04129899,151.61,151.57,75.41752961]
[1750124715663,9.04129899,151.61,151.57,82.01507564]
[1750124715967,173.34245194,151.69,151.58,9.04129899]
[1750124716267,9.04129899,151.64,151.57,82.01507564]
[1750124716472,9.04129899,151.62,151.57,82.01507564]
[1750124716646,9.04129899,151.61,151.57,91.05637463]
[1750124716845,9.04129899,151.62,151.57,91.05637463]
[1750124717753,9.04129899,151.61,151.57,91.05637463]
[1750124718446,9.04129899,151.6,151.57,75.41752961]
[1750124719067,9.04129899,151.6,151.57,82.01508509]
[1750124719446,9.04129899,151.6,151.57,75.41752961]
[1750124721171,9.04129899,151.59,151.57,75.41752961]
[1750124721551,9.04129899,151.58,151.57,75.41752961]
[1750124722067,9.04129899,151.58,151.57,69.41752961]
[1750124722249,53.69094785,151.58,151.51,6.0]
[1750124722450,9.04129899,151.55,151.51,6.0]
[1750124722666,9.04129899,151.55,151.52,6.59978481]
[1750124722867,18.79181043,151.62,151.54,35.04129899]
[1750124723072,10.63339899,151.63,151.59,9.04129899]
[1750124723278,9.04129899,151.62,151.6,6.0]
[1750124723453,9.04129899,151.61,151.6,6.0]
[1750124723867,27.69094785,151.61,151.6,6.0]
[1750124724064,81.01094785,151.61,151.6,6.0]
[1750124724274,81.29527099,151.61,151.6,6.0]
[1750124724886,84.88394692,151.61,151.6,6.0]
[1750124725578,84.59962378,151.61,151.6,6.0]
[1750124728163,78.0037528,151.61,151.6,6.0]
[1750124728481,59.35410394,151.61,151.6,6.0]
[1750124730277,27.32,151.61,151.6,6.0]
[1750124730483,18.64964886,151.63,151.6,6.0]
[1750124730676,52.0037528,151.63,151.6,6.0]
[1750124731077,6.03410394,151.62,151.6,6.0]
[1750124732388,33.35410394,151.61,151.6,6.0]
[1750124732569,27.32,151.61,151.6,6.0]
[1750124732770,24.6837528,151.63,151.6,6.0]
[1750124732978,52.0037528,151.63,151.6,6.0]
[1750124734178,27.32,151.63,151.6,6.0]
[1750124734808,33.35410394,151.63,151.6,6.0]
[1750124735662,6.03410394,151.61,151.6,6.0]
[1750124735867,27.32,151.61,151.6,6.0]
[1750124736085,33.35410394,151.61,151.6,6.0]
[1750124736790,52.0037528,151.61,151.6,6.0]
[1750124738781,27.32,151.61,151.6,6.0]
[1750124738986,33.35410394,151.62,151.6,6.0]
[1750124739283,6.03410394,151.61,151.6,6.0]
[1750124740395,6.03410394,151.63,151.6,6.0]
[1750124740784,33.35410394,151.63,151.6,6.0]
[1750124747007,27.32,151.63,151.6,6.0]
[1750124747303,33.35410394,151.63,151.6,6.0]
[1750124749511,27.32,151.63,151.6,12.59603835]
[1750124749688,32.03410394,151.64,151.6,12.59603835]
[1750124750013,3.43865967,151.64,151.62,6.03410394]
[1750124750187,27.3,151.66,151.62,6.03410394]
[1750124750388,36.77234037,151.66,151.62,6.03410394]
[1750124751785,36.77234037,151.66,151.62,6.59536753]
[1750124752310,24.6837528,151.65,151.6,12.03410394]
[1750124752504,6.03410394,151.61,151.59,5.98]
[1750124752808,6.03410394,151.6,151.59,5.98]
[1750124758228,31.564382,151.6,151.59,5.98]
[1750124758407,36.47177402,151.6,151.59,5.98]
[1750124760018,29.87546796,151.6,151.59,5.98]
[1750124760411,27.3,151.6,151.59,5.98]
[1750124760605,38.24222389,151.6,151.59,5.98]
[1750124761153,33.33410394,151.6,151.59,5.98]
[1750124761437,38.24482117,151.6,151.59,5.98]
[1750124761643,33.33410394,151.6,151.59,5.98]
[1750124762228,6.03410394,151.6,151.59,5.98]
[1750124762434,33.33410394,151.6,151.59,5.98]
[1750124762747,58.864382,151.6,151.59,5.98]
[1750124763101,64.89848594,151.6,151.59,5.98]
[1750124763304,65.04064751,151.6,151.59,5.98]
[1750124763526,46.37613357,151.6,151.59,5.98]
[1750124763713,32.03410394,151.61,151.59,5.98]
[1750124764048,4.91130615,151.6,151.59,5.98]
[1750124765816,10.94541009,151.6,151.59,5.98]
[1750124766221,6.03410394,151.6,151.59,5.98]
[1750124766440,38.24226161,151.6,151.59,5.98]
[1750124766831,33.33410394,151.6,151.59,5.98]
[1750124767314,38.24480862,151.6,151.59,5.98]
[1750124767721,33.33410394,151.6,151.59,5.98]
[1750124768603,38.24499536,151.6,151.59,5.98]
[1750124768808,38.24532872,151.6,151.59,5.98]
[1750124769034,33.33410394,151.6,151.59,5.98]
[1750124769215,38.24469693,151.6,151.59,5.98]
[1750124771042,33.33410394,151.6,151.59,5.98]
[1750124771524,38.24646898,151.6,151.59,5.98]
[1750124771922,63.77674704,151.6,151.59,5.98]
[1750124772431,57.18044098,151.6,151.59,5.98]
[1750124772831,52.26807594,151.6,151.59,5.98]
[1750124773643,33.33410394,151.6,151.59,5.98]
[1750124774644,33.33410394,151.6,151.57,5.98]
[1750124775039,38.24934281,151.6,151.57,5.98]
[1750124775229,33.33410394,151.6,151.57,5.98]
[1750124776440,33.33410394,151.6,151.57,12.57751855]
[1750124777740,6.14404859,151.64,151.59,6.03410394]
[1750124778044,32.21544775,151.63,151.57,12.57751855]
[1750124778242,24.6837528,151.63,151.58,6.03410394]
[1750124778551,6.03410394,151.59,151.57,12.57751855]
[1750124778717,18.64964886,151.61,151.57,12.57751855]
[1750124778718,27.3,151.6,151.57,12.57751855]
[1750124779119,27.3,151.6,151.57,5.98]
[1750124779340,26.0,151.62,151.59,6.03410394]
[1750124779553,27.3,151.62,151.58,6.03410394]
[1750124779873,4.91512299,151.61,151.57,18.61167759]
[1750124780022,33.33410394,151.62,151.57,18.61167759]
[1750124780217,24.6837528,151.58,151.55,5.98]
[1750124780461,24.6837528,151.56,151.55,5.98]
[1750124780741,29.59411838,151.56,151.55,5.98]
[1750124781155,29.59371528,151.56,151.55,5.98]
[1750124781730,36.19176225,151.56,151.55,5.98]
[1750124782141,29.59371528,151.56,151.55,5.98]
[1750124782364,4.90996248,151.56,151.55,18.61258628]
[1750124782520,6.03410394,151.62,151.55,18.61258628]
[1750124782716,10.94296648,151.61,151.56,6.03410394]
[1750124783032,6.03410394,151.61,151.56,6.03410394]
[1750124783438,50.8374015,151.6,151.55,12.57848234]
[1750124783648,6.03410394,151.59,151.55,12.57848234]
[1750124783850,6.03410394,151.59,151.55,18.61258628]
[1750124784057,51.9637528,151.6,151.55,18.61258628]